[Event "Titled Tuesday Blitz July 4 Early 2023"]
[White "Koellner, Ruben Gideon"]
[Black "UNSTOPPABLE_LEGEND"]
[WhiteFideId "12993093"]
[WhiteElo "2664"]
[BlackElo "2482"]
[Result "1-0"]
[Round "6"]
[TimeControl "180+2"]
[Date "2023.07.04"]
[WhiteClock "0:00:33"]
[BlackClock "0:01:00"]
[Board "70"]

1. d4 {[%clk 0:03:00]}  Nf6 {[%clk 0:02:58]} 2. Nf3 {[%clk 0:03:01]}  c5 {[%clk 0:02:51]} 3. e3 {[%clk 0:03:01]}  b6 {[%clk 0:02:48]} 4. Nbd2 {[%clk 0:03:00]}  Bb7 {[%clk 0:02:48]} 5. Bd3 {[%clk 0:03:00]}  e6 {[%clk 0:02:48]} 6. O-O {[%clk 0:03:01]}  Nc6 {[%clk 0:02:46]} 7. c3 {[%clk 0:03:01]}  Rc8 {[%clk 0:02:39]} 8. Qe2 {[%clk 0:03:00]}  Be7 {[%clk 0:02:31]} 9. a3 {[%clk 0:02:59]}  O-O {[%clk 0:02:30]} 10. e4 {[%clk 0:02:59]}  Nh5 {[%clk 0:02:25]} 11. g3 {[%clk 0:02:58]}  d5 {[%clk 0:02:22]} 12. e5 {[%clk 0:02:58]}  f6 {[%clk 0:02:19]} 13. exf6 {[%clk 0:02:44]}  Nxf6 {[%clk 0:02:20]} 14. Qxe6+ {[%clk 0:02:44]}  Kh8 {[%clk 0:02:20]} 15. Ng5 {[%clk 0:02:41]}  Qe8 {[%clk 0:02:20]} 16. Qh3 {[%clk 0:02:25]}  h6 {[%clk 0:02:19]} 17. Ne6 {[%clk 0:02:22]}  Rg8 {[%clk 0:02:19]} 18. Nf3 {[%clk 0:02:15]}  Ne4 {[%clk 0:02:12]} 19. Nf4 {[%clk 0:02:10]}  Qf7 {[%clk 0:01:59]} 20. Re1 {[%clk 0:02:03]}  Na5 {[%clk 0:01:51]} 21. Ne5 {[%clk 0:02:02]}  Qf6 {[%clk 0:01:49]} 22. Neg6+ {[%clk 0:01:48]}  Kh7 {[%clk 0:01:48]} 23. f3 {[%clk 0:01:49]}  Bd6 {[%clk 0:01:41]} 24. fxe4 {[%clk 0:01:47]}  dxe4 {[%clk 0:01:42]} 25. Bxe4 {[%clk 0:01:46]}  Bxe4 {[%clk 0:01:42]} 26. Rxe4 {[%clk 0:01:47]}  Rce8 {[%clk 0:01:43]} 27. Rxe8 {[%clk 0:01:44]}  Rxe8 {[%clk 0:01:44]} 28. Bd2 {[%clk 0:01:31]}  Nb3 {[%clk 0:01:36]} 29. Re1 {[%clk 0:01:27]}  Rxe1+ {[%clk 0:01:32]} 30. Bxe1 {[%clk 0:01:27]}  cxd4 {[%clk 0:01:32]} 31. Qc8 {[%clk 0:01:19]}  Bxf4 {[%clk 0:01:32]} 32. Nxf4 {[%clk 0:01:18]}  Qe5 {[%clk 0:01:30]} 33. Bf2 {[%clk 0:01:15]}  d3 {[%clk 0:01:24]} 34. Nxd3 {[%clk 0:01:08]}  Qe4 {[%clk 0:01:25]} 35. Ne1 {[%clk 0:00:56]}  Nc1 {[%clk 0:01:21]} 36. Qd7 {[%clk 0:00:41]}  Ne2+ {[%clk 0:01:19]} 37. Kf1 {[%clk 0:00:41]}  Nc1 {[%clk 0:01:18]} 38. Qd2 {[%clk 0:00:36]}  Qh1+ {[%clk 0:01:08]} 39. Bg1 {[%clk 0:00:36]}  Na2 {[%clk 0:01:00]} 40. Qg2 {[%clk 0:00:33]} 1-0


[Site "https://www.chess.com"]

[Event "Titled Tuesday Blitz July 4 Early 2023"]
[White "Matamoros Franco, Carlos S."]
[Black "Eynullayev, Atilla"]
[WhiteFideId "3600017"]
[BlackFideId "13413570"]
[WhiteElo "2661"]
[BlackElo "2481"]
[Result "0-1"]
[Round "6"]
[TimeControl "180+2"]
[Date "2023.07.04"]
[WhiteClock "0:01:00"]
[BlackClock "0:01:12"]
[Board "71"]

1. c4 {[%clk 0:03:00]}  Nf6 {[%clk 0:02:59]} 2. g3 {[%clk 0:03:00]}  e6 {[%clk 0:02:58]} 3. Bg2 {[%clk 0:03:00]}  d5 {[%clk 0:02:59]} 4. Nf3 {[%clk 0:03:00]}  Be7 {[%clk 0:02:59]} 5. O-O {[%clk 0:03:00]}  O-O {[%clk 0:03:00]} 6. b3 {[%clk 0:03:00]}  c5 {[%clk 0:03:01]} 7. cxd5 {[%clk 0:02:54]}  Nxd5 {[%clk 0:03:00]} 8. Bb2 {[%clk 0:02:54]}  b6 {[%clk 0:02:54]} 9. d4 {[%clk 0:02:52]}  Bb7 {[%clk 0:02:53]} 10. dxc5 {[%clk 0:02:49]}  Bxc5 {[%clk 0:02:53]} 11. Nbd2 {[%clk 0:02:46]}  Nd7 {[%clk 0:02:53]} 12. a3 {[%clk 0:02:42]}  a5 {[%clk 0:02:48]} 13. Qb1 {[%clk 0:02:29]}  b5 {[%clk 0:02:10]} 14. h4 {[%clk 0:02:21]}  h6 {[%clk 0:02:08]} 15. Ne4 {[%clk 0:02:05]}  Be7 {[%clk 0:01:56]} 16. Rd1 {[%clk 0:01:54]}  b4 {[%clk 0:01:32]} 17. a4 {[%clk 0:01:38]}  Ra6 {[%clk 0:01:19]} 18. Qd3 {[%clk 0:01:24]}  Qa8 {[%clk 0:01:16]} 19. Ned2 {[%clk 0:01:11]}  Nc5 {[%clk 0:01:13]} 20. Qe3 {[%clk 0:01:00]}  Nxe3 {[%clk 0:01:12]} 0-1


[Site "https://www.chess.com"]

[Event "Titled Tuesday Blitz July 4 Early 2023"]
[White "Tan, Jun Ying"]
[Black "Heinemann, Josefine"]
[WhiteFideId "5710413"]
[BlackFideId "12900460"]
[WhiteElo "2649"]
[BlackElo "2471"]
[Result "0-1"]
[Round "6"]
[TimeControl "180+2"]
[Date "2023.07.04"]
[WhiteClock "0:00:05"]
[BlackClock "0:00:33"]
[Board "72"]

1. d4 {[%clk 0:03:00]}  d5 {[%clk 0:02:58]} 2. c4 {[%clk 0:03:01]}  c6 {[%clk 0:02:57]} 3. Nf3 {[%clk 0:03:01]}  Nf6 {[%clk 0:02:56]} 4. Nc3 {[%clk 0:03:02]}  dxc4 {[%clk 0:02:54]} 5. e4 {[%clk 0:03:02]}  b5 {[%clk 0:02:53]} 6. Be2 {[%clk 0:03:02]}  e6 {[%clk 0:02:50]} 7. O-O {[%clk 0:03:02]}  Be7 {[%clk 0:02:48]} 8. a4 {[%clk 0:02:55]}  b4 {[%clk 0:02:47]} 9. e5 {[%clk 0:02:55]}  bxc3 {[%clk 0:02:42]} 10. exf6 {[%clk 0:02:55]}  cxb2 {[%clk 0:02:43]} 11. fxe7 {[%clk 0:02:44]}  Qb6 {[%clk 0:02:36]} 12. Bxb2 {[%clk 0:02:31]}  Qxb2 {[%clk 0:02:36]} 13. Bxc4 {[%clk 0:02:28]}  Qb4 {[%clk 0:02:36]} 14. Ne5 {[%clk 0:02:13]}  Qxe7 {[%clk 0:02:34]} 15. Qf3 {[%clk 0:01:55]}  O-O {[%clk 0:02:32]} 16. Rab1 {[%clk 0:01:40]}  Qd6 {[%clk 0:02:32]} 17. Rfd1 {[%clk 0:01:38]}  a5 {[%clk 0:02:24]} 18. Bd3 {[%clk 0:01:32]}  Ba6 {[%clk 0:02:20]} 19. Bxh7+ {[%clk 0:01:02]}  Kxh7 {[%clk 0:02:18]} 20. Qh5+ {[%clk 0:01:03]}  Kg8 {[%clk 0:02:18]} 21. Rb3 {[%clk 0:01:03]}  f6 {[%clk 0:02:04]} 22. Rh3 {[%clk 0:00:33]}  fxe5 {[%clk 0:02:02]} 23. dxe5 {[%clk 0:00:25]}  Qxd1+ {[%clk 0:01:20]} 24. Qxd1 {[%clk 0:00:24]}  Bc4 {[%clk 0:01:21]} 25. Qh5 {[%clk 0:00:18]}  Bd5 {[%clk 0:01:19]} 26. Qh7+ {[%clk 0:00:14]}  Kf7 {[%clk 0:01:19]} 27. Rg3 {[%clk 0:00:15]}  Rg8 {[%clk 0:01:18]} 28. h4 {[%clk 0:00:06]}  Na6 {[%clk 0:01:17]} 29. h5 {[%clk 0:00:06]}  Ra7 {[%clk 0:01:02]} 30. h6 {[%clk 0:00:06]}  Kf8 {[%clk 0:01:02]} 31. Qg6 {[%clk 0:00:04]}  Nb4 {[%clk 0:00:55]} 32. Rg4 {[%clk 0:00:03]}  Rf7 {[%clk 0:00:53]} 33. h7 {[%clk 0:00:02]}  Rh8 {[%clk 0:00:53]} 34. Qg5 {[%clk 0:00:02]}  Ke8 {[%clk 0:00:46]} 35. Qh5 {[%clk 0:00:02]}  Kf8 {[%clk 0:00:42]} 36. g3 {[%clk 0:00:03]}  c5 {[%clk 0:00:41]} 37. Rf4 {[%clk 0:00:04]}  Rxf4 {[%clk 0:00:39]} 38. gxf4 {[%clk 0:00:05]}  Be4 {[%clk 0:00:40]} 39. Qg5 {[%clk 0:00:04]}  Rxh7 {[%clk 0:00:38]} 40. Qd8+ {[%clk 0:00:05]}  Kf7 {[%clk 0:00:38]} 41. Qxa5 {[%clk 0:00:05]}  Rh1# {[%clk 0:00:33]} 0-1


[Site "https://www.chess.com"]

[Event "Titled Tuesday Blitz July 4 Early 2023"]
[White "Martinez Ramirez, Lennis"]
[Black "Chor, Kevin"]
[WhiteFideId "3509079"]
[BlackFideId "2090740"]
[WhiteElo "2639"]
[BlackElo "2465"]
[Result "0-1"]
[Round "6"]
[TimeControl "180+2"]
[Date "2023.07.04"]
[WhiteClock "0:01:40"]
[BlackClock "0:00:21"]
[Board "74"]

1. Nf3 {[%clk 0:03:00]}  c5 {[%clk 0:02:58]} 2. e4 {[%clk 0:02:59]}  Nc6 {[%clk 0:02:58]} 3. Bc4 {[%clk 0:02:58]}  e6 {[%clk 0:02:48]} 4. Nc3 {[%clk 0:02:58]}  a6 {[%clk 0:02:47]} 5. d4 {[%clk 0:02:58]}  b5 {[%clk 0:02:44]} 6. Be2 {[%clk 0:02:57]}  cxd4 {[%clk 0:02:40]} 7. Nxd4 {[%clk 0:02:58]}  Nf6 {[%clk 0:02:41]} 8. Nxc6 {[%clk 0:02:57]}  dxc6 {[%clk 0:02:42]} 9. Qxd8+ {[%clk 0:02:57]}  Kxd8 {[%clk 0:02:43]} 10. e5 {[%clk 0:02:57]}  Nd5 {[%clk 0:02:34]} 11. Bg5+ {[%clk 0:02:57]}  Be7 {[%clk 0:02:32]} 12. Bxe7+ {[%clk 0:02:56]}  Kxe7 {[%clk 0:02:32]} 13. Ne4 {[%clk 0:02:57]}  f6 {[%clk 0:02:19]} 14. exf6+ {[%clk 0:02:52]}  gxf6 {[%clk 0:02:20]} 15. O-O-O {[%clk 0:02:50]}  Rg8 {[%clk 0:02:17]} 16. g3 {[%clk 0:02:50]}  e5 {[%clk 0:02:13]} 17. c4 {[%clk 0:02:50]}  bxc4 {[%clk 0:01:58]} 18. Bxc4 {[%clk 0:02:51]}  Bg4 {[%clk 0:01:58]} 19. Rd2 {[%clk 0:02:41]}  Bf3 {[%clk 0:01:49]} 20. Re1 {[%clk 0:02:41]}  Rgd8 {[%clk 0:01:48]} 21. Nc5 {[%clk 0:02:35]}  a5 {[%clk 0:01:40]} 22. a3 {[%clk 0:02:35]}  Nb6 {[%clk 0:01:37]} 23. Bd3 {[%clk 0:02:31]}  Rd5 {[%clk 0:01:35]} 24. Nb3 {[%clk 0:02:15]}  a4 {[%clk 0:01:29]} 25. Na1 {[%clk 0:02:14]}  Rad8 {[%clk 0:01:22]} 26. Re3 {[%clk 0:02:15]}  Nc4 {[%clk 0:01:01]} 27. Bxc4 {[%clk 0:02:04]}  Rxd2 {[%clk 0:01:01]} 28. Rxf3 {[%clk 0:02:01]}  Rd1+ {[%clk 0:01:01]} 29. Kc2 {[%clk 0:02:02]}  Rxa1 {[%clk 0:00:59]} 30. Bd3 {[%clk 0:02:01]}  Re1 {[%clk 0:00:56]} 31. Bxh7 {[%clk 0:02:00]}  Re2+ {[%clk 0:00:55]} 32. Kc3 {[%clk 0:02:00]}  Rdd2 {[%clk 0:00:56]} 33. h4 {[%clk 0:01:51]}  Rxb2 {[%clk 0:00:55]} 34. Kc4 {[%clk 0:01:47]}  Rxf2 {[%clk 0:00:51]} 35. Re3 {[%clk 0:01:46]}  Rb3 {[%clk 0:00:47]} 36. Re1 {[%clk 0:01:42]}  Rxg3 {[%clk 0:00:36]} 37. Rh1 {[%clk 0:01:42]}  Rxa3 {[%clk 0:00:33]} 38. h5 {[%clk 0:01:42]}  Raa2 {[%clk 0:00:29]} 39. h6 {[%clk 0:01:41]}  Rh2 {[%clk 0:00:28]} 40. Rg1 {[%clk 0:01:41]}  Rxh6 {[%clk 0:00:27]} 41. Rg7+ {[%clk 0:01:41]}  Kd6 {[%clk 0:00:26]} 42. Bg8 {[%clk 0:01:41]}  Rh4+ {[%clk 0:00:23]} 43. Kc3 {[%clk 0:01:40]}  Ra3+ {[%clk 0:00:22]} 44. Kb2 {[%clk 0:01:40]}  Re3 {[%clk 0:00:22]} 45. Kc2 {[%clk 0:01:40]}  Kc5 {[%clk 0:00:22]} 46. Kd2 {[%clk 0:01:40]}  Ra3 {[%clk 0:00:20]} 47. Rf7 {[%clk 0:01:40]}  Rh2+ {[%clk 0:00:20]} 48. Kc1 {[%clk 0:01:40]}  Ra1# {[%clk 0:00:21]} 0-1


[Site "https://www.chess.com"]

[Event "Titled Tuesday Blitz July 4 Early 2023"]
[White "Begunov, Konstantin"]
[Black "Girya, Olga"]
[WhiteFideId "4118510"]
[BlackFideId "4195752"]
[WhiteElo "2459"]
[BlackElo "2623"]
[Result "1-0"]
[Round "6"]
[TimeControl "180+2"]
[Date "2023.07.04"]
[WhiteClock "0:00:06"]
[BlackClock "0:00:00"]
[Board "76"]

1. d4 {[%clk 0:02:57]}  Nf6 {[%clk 0:02:59]} 2. c4 {[%clk 0:02:57]}  e6 {[%clk 0:03:00]} 3. Nf3 {[%clk 0:02:57]}  d5 {[%clk 0:02:59]} 4. Nc3 {[%clk 0:02:56]}  Be7 {[%clk 0:03:00]} 5. cxd5 {[%clk 0:02:56]}  exd5 {[%clk 0:02:59]} 6. Bg5 {[%clk 0:02:56]}  c6 {[%clk 0:02:57]} 7. Qc2 {[%clk 0:02:56]}  g6 {[%clk 0:02:57]} 8. e3 {[%clk 0:02:56]}  Bf5 {[%clk 0:02:57]} 9. Bd3 {[%clk 0:02:56]}  Bxd3 {[%clk 0:02:57]} 10. Qxd3 {[%clk 0:02:57]}  Nbd7 {[%clk 0:02:57]} 11. O-O {[%clk 0:02:57]}  O-O {[%clk 0:02:57]} 12. Rab1 {[%clk 0:02:58]}  Ne4 {[%clk 0:02:54]} 13. Bh6 {[%clk 0:02:58]}  Re8 {[%clk 0:02:52]} 14. b4 {[%clk 0:02:55]}  Nxc3 {[%clk 0:02:43]} 15. Qxc3 {[%clk 0:02:54]}  a6 {[%clk 0:02:39]} 16. Qc2 {[%clk 0:02:41]}  Bd6 {[%clk 0:02:32]} 17. Bg5 {[%clk 0:02:24]}  Qc7 {[%clk 0:01:59]} 18. a4 {[%clk 0:02:06]}  Nb6 {[%clk 0:01:42]} 19. b5 {[%clk 0:01:59]}  cxb5 {[%clk 0:01:39]} 20. Qxc7 {[%clk 0:01:57]}  Bxc7 {[%clk 0:01:40]} 21. axb5 {[%clk 0:01:57]}  a5 {[%clk 0:01:40]} 22. Rfc1 {[%clk 0:01:32]}  Bd6 {[%clk 0:01:40]} 23. g3 {[%clk 0:01:24]}  Kg7 {[%clk 0:01:21]} 24. Bf4 {[%clk 0:01:24]}  Bxf4 {[%clk 0:01:20]} 25. gxf4 {[%clk 0:01:25]}  Rec8 {[%clk 0:01:14]} 26. Ne5 {[%clk 0:01:24]}  a4 {[%clk 0:01:02]} 27. Nd3 {[%clk 0:01:10]}  a3 {[%clk 0:00:56]} 28. Rxc8 {[%clk 0:01:05]}  Rxc8 {[%clk 0:00:47]} 29. Nc5 {[%clk 0:00:51]}  Ra8 {[%clk 0:00:28]} 30. Nxb7 {[%clk 0:00:27]}  Ra4 {[%clk 0:00:18]} 31. Nc5 {[%clk 0:00:23]}  Ra5 {[%clk 0:00:18]} 32. Nb7 {[%clk 0:00:17]}  Ra4 {[%clk 0:00:13]} 33. Nc5 {[%clk 0:00:17]}  Ra5 {[%clk 0:00:13]} 34. Nb7 {[%clk 0:00:16]}  Ra7 {[%clk 0:00:14]} 35. Nc5 {[%clk 0:00:15]}  Kf6 {[%clk 0:00:14]} 36. Kf1 {[%clk 0:00:14]}  Ke7 {[%clk 0:00:14]} 37. Ke2 {[%clk 0:00:14]}  Kd6 {[%clk 0:00:14]} 38. Kd2 {[%clk 0:00:14]}  Nc4+ {[%clk 0:00:10]} 39. Kc3 {[%clk 0:00:13]}  a2 {[%clk 0:00:06]} 40. Ra1 {[%clk 0:00:13]}  Ra3+ {[%clk 0:00:06]} 41. Kb4 {[%clk 0:00:11]}  Ra8 {[%clk 0:00:06]} 42. Na6 {[%clk 0:00:08]}  Ra7 {[%clk 0:00:02]} 43. Rxa2 {[%clk 0:00:09]}  Rb7 {[%clk 0:00:02]} 44. Rc2 {[%clk 0:00:07]}  Rb6 {[%clk 0:00:01]} 45. Ra2 {[%clk 0:00:07]}  Rb7 {[%clk 0:00:01]} 46. Nc5 {[%clk 0:00:08]}  Rb8 {[%clk 0:00:01]} 47. Ra6+ {[%clk 0:00:08]}  Ke7 {[%clk 0:00:02]} 48. Ra7+ {[%clk 0:00:08]}  Ke8 {[%clk 0:00:01]} 49. Ra6 {[%clk 0:00:06]}  Ke7 {[%clk 0:00:01]} 50. Ra7+ {[%clk 0:00:07]}  Ke8 {[%clk 0:00:01]} 51. Na6 {[%clk 0:00:07]}  Rc8 {[%clk 0:00:01]} 52. Nc7+ {[%clk 0:00:06]}  Kf8 {[%clk 0:00:00]} 53. Nxd5 {[%clk 0:00:06]} 1-0


[Site "https://www.chess.com"]

[Event "Titled Tuesday Blitz July 4 Early 2023"]
[White "Marn, Jan"]
[Black "Kononenko, Dmitry"]
[WhiteFideId "14619245"]
[BlackFideId "14113538"]
[WhiteElo "2456"]
[BlackElo "2617"]
[Result "0-1"]
[Round "6"]
[TimeControl "180+2"]
[Date "2023.07.04"]
[WhiteClock "0:00:03"]
[BlackClock "0:00:17"]
[Board "77"]

1. e4 {[%clk 0:03:00]}  c6 {[%clk 0:02:57]} 2. Nf3 {[%clk 0:02:58]}  d5 {[%clk 0:02:58]} 3. Nc3 {[%clk 0:02:59]}  Bg4 {[%clk 0:02:58]} 4. h3 {[%clk 0:02:58]}  Bxf3 {[%clk 0:02:59]} 5. Qxf3 {[%clk 0:02:59]}  e6 {[%clk 0:03:00]} 6. a3 {[%clk 0:02:59]}  Bc5 {[%clk 0:02:58]} 7. Be2 {[%clk 0:02:57]}  Ne7 {[%clk 0:02:57]} 8. O-O {[%clk 0:02:51]}  Nd7 {[%clk 0:02:52]} 9. Rd1 {[%clk 0:02:50]}  Bd4 {[%clk 0:02:51]} 10. Bf1 {[%clk 0:02:18]}  O-O {[%clk 0:02:48]} 11. Ne2 {[%clk 0:02:12]}  Bf6 {[%clk 0:02:47]} 12. d4 {[%clk 0:02:10]}  g6 {[%clk 0:02:30]} 13. Ng3 {[%clk 0:02:05]}  Bg7 {[%clk 0:02:25]} 14. e5 {[%clk 0:01:38]}  c5 {[%clk 0:02:17]} 15. c3 {[%clk 0:01:37]}  Nc6 {[%clk 0:02:17]} 16. Be3 {[%clk 0:01:34]}  Qb6 {[%clk 0:02:13]} 17. b4 {[%clk 0:01:33]}  cxd4 {[%clk 0:02:12]} 18. cxd4 {[%clk 0:01:34]}  Rac8 {[%clk 0:02:11]} 19. h4 {[%clk 0:01:28]}  Qd8 {[%clk 0:02:08]} 20. h5 {[%clk 0:01:28]}  Qh4 {[%clk 0:02:01]} 21. Qf4 {[%clk 0:01:03]}  Qxf4 {[%clk 0:01:57]} 22. Bxf4 {[%clk 0:01:04]}  Rfe8 {[%clk 0:01:50]} 23. Be3 {[%clk 0:00:54]}  Nb6 {[%clk 0:01:46]} 24. Rac1 {[%clk 0:00:47]}  Nb8 {[%clk 0:01:35]} 25. Rxc8 {[%clk 0:00:28]}  Rxc8 {[%clk 0:01:36]} 26. Rc1 {[%clk 0:00:29]}  Rxc1 {[%clk 0:01:32]} 27. Bxc1 {[%clk 0:00:30]}  Bf8 {[%clk 0:01:29]} 28. hxg6 {[%clk 0:00:20]}  hxg6 {[%clk 0:01:28]} 29. f4 {[%clk 0:00:21]}  Nc6 {[%clk 0:01:21]} 30. Bb2 {[%clk 0:00:19]}  Nc4 {[%clk 0:01:19]} 31. Bxc4 {[%clk 0:00:19]}  dxc4 {[%clk 0:01:19]} 32. Kf2 {[%clk 0:00:16]}  Ne7 {[%clk 0:01:15]} 33. Ne4 {[%clk 0:00:13]}  Nd5 {[%clk 0:01:13]} 34. Nc3 {[%clk 0:00:13]}  Nxf4 {[%clk 0:01:08]} 35. Ke3 {[%clk 0:00:11]}  Nxg2+ {[%clk 0:01:06]} 36. Ke4 {[%clk 0:00:10]}  Ne1 {[%clk 0:00:52]} 37. d5 {[%clk 0:00:10]}  exd5+ {[%clk 0:00:52]} 38. Nxd5 {[%clk 0:00:11]}  Nd3 {[%clk 0:00:51]} 39. Bd4 {[%clk 0:00:10]}  a6 {[%clk 0:00:48]} 40. Nf6+ {[%clk 0:00:09]}  Kh8 {[%clk 0:00:45]} 41. Nd7 {[%clk 0:00:09]}  Bg7 {[%clk 0:00:44]} 42. Kd5 {[%clk 0:00:07]}  g5 {[%clk 0:00:41]} 43. Kxc4 {[%clk 0:00:06]}  Nf4 {[%clk 0:00:37]} 44. Be3 {[%clk 0:00:04]}  Ne6 {[%clk 0:00:37]} 45. Kd5 {[%clk 0:00:05]}  g4 {[%clk 0:00:37]} 46. Ke4 {[%clk 0:00:04]}  Kh7 {[%clk 0:00:37]} 47. Bf2 {[%clk 0:00:02]}  Kg6 {[%clk 0:00:37]} 48. Bg3 {[%clk 0:00:02]}  Kh5 {[%clk 0:00:32]} 49. Nc5 {[%clk 0:00:01]}  Nxc5+ {[%clk 0:00:30]} 50. bxc5 {[%clk 0:00:02]}  Kg5 {[%clk 0:00:28]} 51. a4 {[%clk 0:00:02]}  Bf8 {[%clk 0:00:26]} 52. Kd5 {[%clk 0:00:02]}  Kf5 {[%clk 0:00:26]} 53. c6 {[%clk 0:00:02]}  bxc6+ {[%clk 0:00:25]} 54. Kxc6 {[%clk 0:00:03]}  Bb4 {[%clk 0:00:22]} 55. Kd7 {[%clk 0:00:02]}  Bc3 {[%clk 0:00:17]} 56. Ke8 {[%clk 0:00:01]}  Bxe5 {[%clk 0:00:18]} 57. Bxe5 {[%clk 0:00:02]}  Kxe5 {[%clk 0:00:17]} 58. Kxf7 {[%clk 0:00:03]} 0-1


[Site "https://www.chess.com"]

[Event "Titled Tuesday Blitz July 4 Early 2023"]
[White "Fisher_TheGalactic"]
[Black "Itkis, Boris"]
[BlackFideId "1209167"]
[WhiteElo "2614"]
[BlackElo "2452"]
[Result "1-0"]
[Round "6"]
[TimeControl "180+2"]
[Date "2023.07.04"]
[WhiteClock "0:01:44"]
[BlackClock "0:01:05"]
[Board "79"]

1. Nf3 {[%clk 0:03:00]}  d5 {[%clk 0:02:59]} 2. g3 {[%clk 0:03:00]}  Nd7 {[%clk 0:02:59]} 3. Bg2 {[%clk 0:03:00]}  e5 {[%clk 0:02:58]} 4. d3 {[%clk 0:03:00]}  Bd6 {[%clk 0:02:57]} 5. O-O {[%clk 0:03:00]}  c6 {[%clk 0:02:57]} 6. e4 {[%clk 0:03:00]}  Ngf6 {[%clk 0:02:57]} 7. Nh4 {[%clk 0:02:59]}  O-O {[%clk 0:02:21]} 8. Nf5 {[%clk 0:02:57]}  Qc7 {[%clk 0:02:21]} 9. f4 {[%clk 0:02:51]}  dxe4 {[%clk 0:02:17]} 10. dxe4 {[%clk 0:02:50]}  Bc5+ {[%clk 0:02:15]} 11. Kh1 {[%clk 0:02:50]}  exf4 {[%clk 0:02:11]} 12. Bxf4 {[%clk 0:02:51]}  Ne5 {[%clk 0:02:12]} 13. Nd2 {[%clk 0:02:14]}  Bxf5 {[%clk 0:02:03]} 14. exf5 {[%clk 0:02:15]}  Rad8 {[%clk 0:02:03]} 15. Qc1 {[%clk 0:02:10]}  Nfg4 {[%clk 0:01:53]} 16. Ne4 {[%clk 0:02:09]}  Qb6 {[%clk 0:01:33]} 17. h3 {[%clk 0:02:07]}  Be3 {[%clk 0:01:32]} 18. Qb1 {[%clk 0:01:52]}  Bxf4 {[%clk 0:01:31]} 19. gxf4 {[%clk 0:01:52]}  Nf2+ {[%clk 0:01:07]} 20. Rxf2 {[%clk 0:01:45]}  Qxf2 {[%clk 0:01:05]} 21. Nxf2 {[%clk 0:01:44]} 1-0


[Site "https://www.chess.com"]

[Event "Titled Tuesday Blitz July 4 Early 2023"]
[White "Borgaonkar Akshay"]
[Black "Goncalves, Davi Sulzbacher"]
[WhiteFideId "25639110"]
[BlackFideId "2154510"]
[WhiteElo "2614"]
[BlackElo "2452"]
[Result "1-0"]
[Round "6"]
[TimeControl "180+2"]
[Date "2023.07.04"]
[WhiteClock "0:01:12"]
[BlackClock "0:00:00"]
[Board "80"]

1. c4 {[%clk 0:02:59]}  Nf6 {[%clk 0:02:42]} 2. Nf3 {[%clk 0:02:56]}  g6 {[%clk 0:02:41]} 3. Nc3 {[%clk 0:02:52]}  d5 {[%clk 0:02:38]} 4. cxd5 {[%clk 0:02:52]}  Nxd5 {[%clk 0:02:39]} 5. h4 {[%clk 0:02:53]}  h5 {[%clk 0:02:26]} 6. g3 {[%clk 0:02:53]}  Bg7 {[%clk 0:02:26]} 7. Bg2 {[%clk 0:02:53]}  O-O {[%clk 0:02:26]} 8. Ng5 {[%clk 0:02:54]}  c6 {[%clk 0:02:23]} 9. Qb3 {[%clk 0:02:50]}  e6 {[%clk 0:01:57]} 10. e4 {[%clk 0:02:48]}  Nb6 {[%clk 0:01:51]} 11. O-O {[%clk 0:02:40]}  Na6 {[%clk 0:01:44]} 12. Qc2 {[%clk 0:02:37]}  Nb4 {[%clk 0:01:42]} 13. Qb3 {[%clk 0:02:36]}  Nd3 {[%clk 0:01:38]} 14. Qc2 {[%clk 0:02:33]}  e5 {[%clk 0:01:07]} 15. b3 {[%clk 0:02:31]}  Bg4 {[%clk 0:00:59]} 16. Ba3 {[%clk 0:02:30]}  Re8 {[%clk 0:00:59]} 17. f3 {[%clk 0:02:28]}  Bc8 {[%clk 0:00:23]} 18. Nd1 {[%clk 0:02:27]}  f6 {[%clk 0:00:22]} 19. Nh3 {[%clk 0:02:27]}  Be6 {[%clk 0:00:22]} 20. Ne3 {[%clk 0:02:27]}  Bf8 {[%clk 0:00:20]} 21. Bxf8 {[%clk 0:02:25]}  Rxf8 {[%clk 0:00:21]} 22. Nf2 {[%clk 0:02:25]}  Nxf2 {[%clk 0:00:19]} 23. Rxf2 {[%clk 0:02:26]}  Qd4 {[%clk 0:00:19]} 24. Raf1 {[%clk 0:02:26]}  Rad8 {[%clk 0:00:19]} 25. f4 {[%clk 0:02:27]}  Qd3 {[%clk 0:00:19]} 26. Qc5 {[%clk 0:02:24]}  Qd4 {[%clk 0:00:17]} 27. Qe7 {[%clk 0:02:19]}  Qd7 {[%clk 0:00:14]} 28. Qa3 {[%clk 0:02:15]}  exf4 {[%clk 0:00:13]} 29. gxf4 {[%clk 0:02:14]}  Nc8 {[%clk 0:00:08]} 30. f5 {[%clk 0:02:13]}  gxf5 {[%clk 0:00:07]} 31. Nxf5 {[%clk 0:02:08]}  Bxf5 {[%clk 0:00:07]} 32. Rxf5 {[%clk 0:02:08]}  Qxd2 {[%clk 0:00:06]} 33. R1f3 {[%clk 0:02:04]}  Rf7 {[%clk 0:00:05]} 34. Rg3+ {[%clk 0:01:45]}  Rg7 {[%clk 0:00:05]} 35. Rxg7+ {[%clk 0:01:45]}  Kxg7 {[%clk 0:00:06]} 36. Qc5 {[%clk 0:01:39]}  Qd4+ {[%clk 0:00:03]} 37. Qxd4 {[%clk 0:01:38]}  Rxd4 {[%clk 0:00:04]} 38. Rxh5 {[%clk 0:01:39]}  Nd6 {[%clk 0:00:04]} 39. e5 {[%clk 0:01:36]}  fxe5 {[%clk 0:00:02]} 40. Rxe5 {[%clk 0:01:37]}  Rd1+ {[%clk 0:00:03]} 41. Kh2 {[%clk 0:01:37]}  Rd2 {[%clk 0:00:03]} 42. Re7+ {[%clk 0:01:34]}  Kf6 {[%clk 0:00:03]} 43. Rd7 {[%clk 0:01:34]}  a5 {[%clk 0:00:04]} 44. h5 {[%clk 0:01:30]}  Kg5 {[%clk 0:00:04]} 45. Rh7 {[%clk 0:01:26]}  Nf5 {[%clk 0:00:04]} 46. Kg1 {[%clk 0:01:23]}  Kf4 {[%clk 0:00:04]} 47. Rf7 {[%clk 0:01:20]}  Kg4 {[%clk 0:00:02]} 48. Rxb7 {[%clk 0:01:13]}  Ne3 {[%clk 0:00:02]} 49. Rg7+ {[%clk 0:01:11]}  Kh4 {[%clk 0:00:02]} 50. Bxc6 {[%clk 0:01:11]}  Rd1+ {[%clk 0:00:02]} 51. Kf2 {[%clk 0:01:11]}  Ng4+ {[%clk 0:00:02]} 52. Rxg4+ {[%clk 0:01:11]}  Kxg4 {[%clk 0:00:00]} 53. Bf3+ {[%clk 0:01:12]} 1-0


[Site "https://www.chess.com"]